fUSD/lending_fUSD_20250414
["ID","MTS","AMOUNT","RATE_DAILY","PERIOD"]
[357974584,1744636242771,-500.0,0.00019178,2]
[357974585,1744636242780,-500.0,0.00019178,2]
[357974586,1744636242789,-500.0,0.00019178,2]
[357974587,1744636242799,-500.0,0.00019178,2]
[357974588,1744636242809,-500.0,0.00019178,2]
[357974589,1744636242818,-500.0,0.00019178,2]
[357974590,1744636242828,-500.0,0.00019178,2]
[357974591,1744636242839,-3421.9,0.00019178,2]
[357974592,1744636242849,-500.0,0.00019178,2]
[357974593,1744636242858,-567.90021887,0.00019178,2]
[357974594,1744636242868,-500.0,0.00019178,2]
[357974595,1744636242879,-500.0,0.00019178,2]
[357974596,1744636242888,-500.0,0.00019178,2]
[357974597,1744636242898,-500.0,0.00019178,2]
[357974598,1744636242908,-506.20188544,0.00019178,2]
[357974599,1744636242918,-500.0,0.00019178,2]
[357974600,1744636242928,-500.0,0.00019178,2]
[357974601,1744636242938,-500.0,0.00019178,2]
[357974602,1744636242947,-500.0,0.00019178,2]
[357974603,1744636242957,-500.0,0.00019178,2]
[357974604,1744636242967,-500.0,0.00019178,2]
[357974606,1744636242976,-500.0,0.00019178,2]
[357974608,1744636242985,-500.0,0.00019178,2]
[357974609,1744636242995,-500.0,0.00019178,2]
[357974610,1744636243005,-500.0,0.00019178,2]
[357974611,1744636243014,-500.0,0.00019178,2]
[357974612,1744636243023,-250.77941756,0.00019178,2]
[357974613,1744636243032,-500.0,0.00019178,2]
[357974614,1744636243042,-500.0,0.00019178,2]
[357974616,1744636243051,-500.0,0.00019178,2]
[357974619,1744636243063,-500.0,0.00019178,2]
[357974620,1744636243073,-627.07,0.00019178,2]
[357974621,1744636243082,-500.0,0.00019178,2]
[357974622,1744636243092,-619.36,0.00019178,2]
[357974623,1744636243101,-500.0,0.00019178,2]
[357974624,1744636243111,-500.0,0.00019178,2]
[357974625,1744636243120,-500.0,0.00019178,2]
[357974626,1744636243131,-500.0,0.00019178,2]
[357974627,1744636243141,-380.71761589,0.00019178,2]
[357974628,1744636243151,-500.0,0.00019178,2]
[357974629,1744636243160,-500.0,0.00019178,2]
[357974631,1744636243170,-500.0,0.00019178,2]
[357974633,1744636243179,-500.0,0.00019178,2]
[357974634,1744636243189,-509.01901036,0.00019178,2]
[357974635,1744636243198,-500.0,0.00019178,2]
[357974636,1744636243208,-500.0,0.00019178,2]
[357974637,1744636243217,-500.0,0.00019178,2]
[357974638,1744636243227,-538.7290083,0.00019178,2]
[357974639,1744636243236,-500.0,0.00019178,2]
[357974640,1744636243246,-500.0,0.00019178,2]
[357974641,1744636243256,-500.0,0.00019178,2]
[357974642,1744636243266,-507.01884421,0.00019178,2]
[357974643,1744636243275,-500.0,0.00019178,2]
[357974644,1744636243285,-944.47,0.00019178,2]
[357974645,1744636243295,-500.0,0.00019178,2]
[357974646,1744636243305,-500.0,0.00019178,2]
[357974647,1744636243315,-500.0,0.00019178,2]
[357974648,1744636243324,-500.0,0.00019178,2]
[357974649,1744636243334,-151.0,0.00019178,2]
[357974650,1744636243344,-500.0,0.00019178,2]
[357974651,1744636243353,-500.0,0.00019178,2]
[357974652,1744636243363,-500.0,0.00019178,2]
[357974653,1744636243373,-230.90256162,0.00019178,2]
[357974654,1744636243382,-500.0,0.00019178,2]
[357974655,1744636243393,-500.0,0.00019178,2]
[357974656,1744636243403,-500.0,0.00019178,2]
[357974657,1744636243413,-512.86312731,0.00019178,2]
[357974658,1744636243423,-500.0,0.00019178,2]
[357974659,1744636243432,-500.0,0.00019178,2]
[357974660,1744636243442,-500.0,0.00019178,2]
[357974661,1744636243452,-500.0,0.00019178,2]
[357974662,1744636243462,-500.0,0.00019178,2]
[357974663,1744636243472,-500.0,0.00019178,2]
[357974664,1744636243482,-517.68399656,0.00019178,2]
[357974665,1744636243491,-500.0,0.00019178,2]
[357974666,1744636243501,-500.0,0.00019178,2]
[357974667,1744636243512,-500.0,0.00019178,2]
[357974668,1744636243521,-500.0,0.00019178,2]
[357974670,1744636243531,-500.0,0.00019178,2]
[357974672,1744636243540,-500.0,0.00019178,2]
[357974675,1744636243559,-500.0,0.00019178,2]
[357974677,1744636243570,-500.0,0.00019178,2]
[357974679,1744636243580,-500.0,0.00019178,2]
[357974693,1744636243772,-500.0,0.00019178,2]
[357974694,1744636243783,-500.0,0.00019178,2]
[357974695,1744636243793,-172.93193658,0.00019178,2]
[357974696,1744636243803,-500.0,0.00019178,2]
[357974697,1744636243813,-500.0,0.00019178,2]
[357974698,1744636243823,-500.0,0.00019178,2]
[357974699,1744636243832,-313.03835211,0.00019178,2]
[357974700,1744636243842,-500.0,0.00019178,2]
[357974701,1744636243852,-500.0,0.00019178,2]
[357974702,1744636243862,-500.0,0.00019178,2]
[357974703,1744636243872,-500.0,0.00019178,2]
[357974704,1744636243882,-500.0,0.00019178,2]
[357974705,1744636243892,-500.0,0.00019178,2]
[357974706,1744636243902,-500.0,0.00019178,2]
[357974707,1744636243912,-500.0,0.00019178,2]
[357974708,1744636243921,-500.0,0.00019178,2]
[357974709,1744636243931,-588.21515634,0.00019178,2]
[357974710,1744636243940,-500.0,0.00019178,2]
[357974711,1744636243950,-500.0,0.00019178,2]
[357974712,1744636243959,-500.0,0.00019178,2]
[357974713,1744636243969,-500.0,0.00019178,2]
[357974714,1744636243978,-500.0,0.00019178,2]
[357974715,1744636243987,-504.23171124,0.00019178,2]
[357974716,1744636243996,-500.0,0.00019178,2]
[357974717,1744636244005,-182.57510806,0.00019178,2]
[357974718,1744636244015,-500.0,0.00019178,2]
[357974719,1744636244024,-500.0,0.00019178,2]
[357974720,1744636244034,-500.0,0.00019178,2]
[357974721,1744636244043,-545.37389088,0.00019178,2]
[357974722,1744636244053,-2000.0,0.00019178,2]
[357974723,1744636244064,-500.0,0.00019178,2]
[357974724,1744636244073,-500.0,0.00019178,2]
[357974725,1744636244083,-500.0,0.00019178,2]
[357974726,1744636244093,-500.0,0.00019178,2]
[357974727,1744636244103,-500.0,0.00019178,2]
[357974728,1744636244113,-500.0,0.00019178,2]
[357974729,1744636244122,-500.0,0.00019178,2]
[357974730,1744636244130,-1255.63,0.00019178,2]
[357974731,1744636244139,-603.03690998,0.00019178,2]
[357974732,1744636244148,-500.0,0.00019178,2]
[357974733,1744636244157,-500.0,0.00019178,2]
[357974734,1744636244167,-504.1633221,0.00019178,2]
[357974735,1744636244175,-500.0,0.00019178,2]
[357974736,1744636244185,-500.0,0.00019178,2]
[357974737,1744636244193,-197.30322442,0.00019178,2]
[357974738,1744636244202,-500.0,0.00019178,2]
[357974739,1744636244211,-500.0,0.00019178,2]
[357974740,1744636244222,-500.0,0.00019178,2]
[357974741,1744636244231,-500.0,0.00019178,2]
[357974742,1744636244241,-595.55,0.00019178,2]
[357974743,1744636244251,-500.0,0.00019178,2]
[357974744,1744636244260,-500.0,0.00019178,2]
[357974745,1744636244270,-510.25170695,0.00019178,2]
[357974746,1744636244279,-500.0,0.00019178,2]
[357974747,1744636244288,-507.15322763,0.00019178,2]
[357974748,1744636244297,-500.0,0.00019178,2]
[357974749,1744636244307,-500.0,0.00019178,2]
[357974750,1744636244317,-500.0,0.00019178,2]
[357974751,1744636244326,-150.0,0.00019178,2]
[357974752,1744636244335,-505.36614645,0.00019178,2]
[357974753,1744636244345,-500.0,0.00019178,2]
[357974754,1744636244355,-500.0,0.00019178,2]
[357974755,1744636244364,-584.464357,0.00019178,2]
[357974756,1744636244373,-500.0,0.00019178,2]
[357974757,1744636244383,-1296.28,0.00019178,2]
[357974758,1744636244395,-500.0,0.00019178,2]
[357974759,1744636244405,-525.19032362,0.00019178,2]
[357974760,1744636244415,-500.0,0.00019178,2]
[357974761,1744636244424,-500.0,0.00019178,2]
[357974762,1744636244435,-500.0,0.00019178,2]
[357974763,1744636244444,-500.0,0.00019178,2]
[357974764,1744636244453,-361.80043789,0.00019178,2]
[357974765,1744636244671,-138.54604361,0.00019178,2]
[357974766,1744636244681,-574.83773874,0.00019178,2]
[357974767,1744636244691,-500.0,0.00019178,2]
[357974768,1744636244704,-500.0,0.00019178,2]
[357974769,1744636244717,-535.19663594,0.00019178,2]
[357974770,1744636244728,-500.0,0.00019178,2]
[357974771,1744636244738,-500.0,0.00019178,2]
[357974772,1744636244748,-500.0,0.00019178,2]
[357974773,1744636244758,-500.0,0.00019178,2]
[357974774,1744636244767,-500.0,0.00019178,2]
[357974775,1744636244777,-500.0,0.00019178,2]
[357974776,1744636244786,-500.0,0.00019178,2]
[357974777,1744636244796,-503.83442561,0.00019178,2]
[357974778,1744636244804,-500.0,0.00019178,2]
[357974779,1744636244814,-500.0,0.00019178,2]
[357974780,1744636244823,-500.0,0.00019178,2]
[357974781,1744636244833,-500.0,0.00019178,2]
[357974782,1744636244842,-500.0,0.00019178,2]
[357974783,1744636244852,-500.0,0.00019178,2]
[357974784,1744636244862,-514.98488608,0.00019178,2]
[357974785,1744636244871,-500.0,0.00019178,2]
[357974786,1744636244881,-619.27083389,0.00019178,2]
[357974787,1744636244891,-529.73676513,0.00019178,2]
[357974788,1744636244900,-500.0,0.00019178,2]
[357974789,1744636244909,-500.0,0.00019178,2]
[357974790,1744636244919,-250.0,0.00019199,2]
[357974791,1744636244928,-7462.44,0.00019226,2]
[357974792,1744636244937,-200.0,0.00019233,2]
[357974793,1744636244947,-461.70459365,0.00019352,2]
[357974794,1744636244956,-461.70459356,0.00019413,2]
[357974795,1744636244966,-500.0,0.00019451,2]
[357974796,1744636244975,-500.0,0.00019451,2]
[357974797,1744636244985,-243.46456664,0.00019451,2]
[357974798,1744636244996,-227.76916964,0.00019451,2]
[357974799,1744636245006,-500.0,0.00019452,2]
[357974800,1744636245015,-500.0,0.00019452,2]
[357974801,1744636245025,-500.0,0.00019452,2]
[357974802,1744636245034,-500.0,0.00019452,2]
[357974803,1744636245044,-500.0,0.00019452,2]
[357974804,1744636245053,-500.0,0.00019452,2]
[357974805,1744636245064,-500.0,0.00019452,2]
[357974806,1744636245073,-520.31,0.00019452,2]
[357974807,1744636245082,-809.0,0.00019452,2]
[357974808,1744636245092,-626.13389691,0.00019452,2]
[357974809,1744636245101,-500.0,0.00019452,2]
[357974810,1744636245110,-500.0,0.00019452,2]
[357974811,1744636245119,-500.0,0.00019452,2]
[357974812,1744636245129,-500.0,0.00019452,2]
[357974813,1744636245138,-500.0,0.00019452,2]
[357974814,1744636245147,-500.0,0.00019452,2]
[357974815,1744636245157,-500.0,0.00019452,2]
[357974816,1744636245167,-500.0,0.00019452,2]
[357974817,1744636245177,-157.64231433,0.00019452,2]
[357974818,1744636245186,-500.0,0.00019452,2]
[357974819,1744636245195,-500.0,0.00019452,2]
[357974820,1744636245205,-500.0,0.00019452,2]
[357974821,1744636245213,-287.83368992,0.00019452,2]
[357974822,1744636245223,-161.02,0.00019452,2]
[357974823,1744636245232,-500.0,0.00019452,2]
[357974824,1744636245241,-500.0,0.00019452,2]
[357974825,1744636245250,-500.0,0.00019452,2]
[357974826,1744636245259,-500.0,0.00019452,2]
[357974827,1744636245269,-500.0,0.00019452,2]
[357974828,1744636245278,-500.0,0.00019452,2]
[357974829,1744636245287,-500.0,0.00019452,2]
[357974830,1744636245297,-500.0,0.00019452,2]
[357974831,1744636245307,-649.46,0.00019452,2]
[357974832,1744636245317,-192.18,0.00019452,2]
[357974833,1744636245327,-500.0,0.00019452,2]
[357974834,1744636245337,-500.0,0.00019452,2]
[357974835,1744636245347,-500.0,0.00019452,2]
[357974836,1744636245358,-500.0,0.00019452,2]
[357974837,1744636245368,-300.85,0.00019452,2]
[357974838,1744636245379,-500.0,0.00019452,2]
[357974839,1744636245391,-500.0,0.00019452,2]
[357974840,1744636245405,-608.95956989,0.00019452,2]
[357974841,1744636245416,-500.0,0.00019452,2]
[357974842,1744636245426,-500.0,0.00019452,2]
[357974843,1744636245436,-500.0,0.00019452,2]
[357974844,1744636245447,-500.0,0.00019452,2]
[357974845,1744636245457,-500.0,0.00019452,2]
[357974846,1744636245467,-500.0,0.00019452,2]
[357974847,1744636245477,-500.0,0.00019452,2]
[357974848,1744636245487,-746.07,0.00019452,2]
[357974849,1744636245497,-500.0,0.00019452,2]
[357974850,1744636245506,-500.0,0.00019452,2]
[357974851,1744636245515,-500.0,0.00019452,2]
[357974852,1744636245525,-500.0,0.00019452,2]
[357974853,1744636245534,-500.0,0.00019452,2]
[357974854,1744636245544,-500.0,0.00019452,2]
[357974855,1744636245554,-450.43,0.00019452,2]
[357974856,1744636245566,-500.0,0.00019452,2]
[357974857,1744636245576,-54.17762461,0.00019452,2]
[357974858,1744636245592,-497.55237539,0.00019452,2]
[357974859,1744636245602,-500.0,0.00019452,2]
[357974860,1744636245611,-500.0,0.00019452,2]
[357974861,1744636245621,-366.14247718,0.00019452,2]
[357974862,1744636245630,-500.0,0.00019452,2]
[357974863,1744636245640,-500.0,0.00019452,2]
[357974864,1744636245649,-500.0,0.00019452,2]
[357974865,1744636245659,-500.0,0.00019452,2]
[357974866,1744636245668,-1000.0,0.00019452,2]
[357974867,1744636245678,-500.0,0.00019452,2]
[357974868,1744636245687,-500.0,0.00019452,2]
[357974869,1744636245696,-342.21,0.00019452,2]
[357974870,1744636245706,-259.05700476,0.00019452,2]
[357974871,1744636245715,-500.0,0.00019452,2]
[357974872,1744636245725,-500.0,0.00019452,2]
[357974873,1744636245734,-500.0,0.00019452,2]
[357974874,1744636245744,-500.0,0.00019452,2]
[357974875,1744636245753,-789.71,0.00019452,2]
[357974876,1744636245763,-500.0,0.00019452,2]
[357974877,1744636245773,-500.0,0.00019452,2]
[357974878,1744636245783,-2353.62663258,0.00019452,2]
[357974879,1744636245885,-500.0,0.00019178,2]
[357974880,1744636245895,-27261.79336742,0.00019452,2]
[357974881,1744636245904,-349.65,0.00019452,2]
[357974882,1744636245914,-500.0,0.00019452,2]
[357974883,1744636245923,-500.0,0.00019452,2]
[357974884,1744636245933,-226.97,0.00019452,2]
[357974885,1744636245942,-500.0,0.00019452,2]
[357974886,1744636245951,-1260.19,0.00019452,2]
[357974887,1744636245961,-409.58650914,0.00019452,2]
[357974888,1744636245970,-616.48,0.00019452,2]
[357974889,1744636245979,-500.0,0.00019452,2]
[357974891,1744636245989,-248.01431448,0.00019452,2]
[357974893,1744636245999,-500.0,0.00019452,2]
[357974895,1744636246008,-325.11774081,0.00019452,2]
[357974897,1744636246016,-500.0,0.00019452,2]
[357974898,1744636246026,-500.0,0.00019452,2]
[357974899,1744636246035,-3421.9,0.00019452,2]
[357974900,1744636246046,-500.0,0.00019452,2]
[357974901,1744636246055,-500.0,0.00019452,2]
[357974902,1744636246064,-500.0,0.00019452,2]
[357974903,1744636246073,-500.0,0.00019452,2]
[357974904,1744636246083,-500.0,0.00019452,2]
[357974905,1744636246092,-500.0,0.00019452,2]
[357974906,1744636246101,-500.0,0.00019452,2]
[357974907,1744636246110,-500.0,0.00019452,2]
[357974908,1744636246119,-622.38005136,0.00019452,2]
[357974909,1744636246128,-500.0,0.00019452,2]
[357974910,1744636246137,-203.08,0.00019452,2]
[357974911,1744636246147,-500.0,0.00019452,2]
[357974912,1744636246156,-500.0,0.00019452,2]
[357974913,1744636246166,-500.0,0.00019452,2]
[357974914,1744636246175,-424.45,0.00019452,2]
[357974915,1744636246185,-500.0,0.00019452,2]
[357974916,1744636246194,-944.47,0.00019452,2]
[357974917,1744636246204,-500.0,0.00019452,2]
[357974918,1744636246213,-200.48967401,0.00019452,2]
[357974919,1744636246222,-227.19,0.00019452,2]
[357974920,1744636246231,-500.0,0.00019452,2]
[357974921,1744636246240,-500.0,0.00019452,2]
[357974922,1744636246249,-500.0,0.00019452,2]
[357974923,1744636246258,-500.0,0.00019452,2]
[357974924,1744636246267,-342.49,0.00019452,2]
[357974925,1744636246276,-500.0,0.00019452,2]
[357974926,1744636246286,-500.0,0.00019452,2]
[357974927,1744636246295,-500.0,0.00019452,2]
[357974928,1744636246305,-347.45,0.00019452,2]
[357974929,1744636246316,-500.0,0.00019452,2]
[357974930,1744636246325,-500.0,0.00019452,2]
[357974931,1744636246334,-187.47,0.00019452,2]
[357974932,1744636246343,-1255.63,0.00019452,2]
[357974933,1744636246352,-500.0,0.00019452,2]
[357974934,1744636246362,-595.55,0.00019452,2]
[357974935,1744636246372,-500.0,0.00019452,2]
[357974936,1744636246381,-1296.28,0.00019452,2]
[357974937,1744636246395,-448.27,0.00019452,2]
[357974938,1744636246404,-500.0,0.00019452,2]
[357974939,1744636246413,-500.0,0.00019452,2]
[357974940,1744636246423,-500.0,0.00019452,2]
[357974941,1744636246433,-500.0,0.00019452,2]
[357974942,1744636246443,-500.0,0.00019452,2]
[357974943,1744636246452,-500.0,0.00019452,2]
[357974944,1744636246461,-461.70459356,0.00019474,2]
[357974945,1744636246472,-461.70459356,0.00019535,2]
[357974946,1744636246482,-461.70459356,0.00019596,2]
[357974947,1744636246491,-1000.0,0.000196,2]
[357974948,1744636246500,-1899.53724001,0.00019611,2]
[357974957,1744636246662,-500.0,0.00019616,2]
[357974958,1744636246677,-461.70459356,0.00019656,2]
[357974959,1744636246699,-207.98,0.000197,2]
[357974960,1744636246715,-307.65,0.000197,2]
[357974961,1744636246726,-848.16001264,0.000197,2]
[357974962,1744636246738,-1000.0,0.000197,2]
[357974963,1744636246748,-552.70251136,0.00019708,2]
[357974964,1744636246757,-461.70459356,0.00019717,2]
[357974965,1744636246767,-500.0,0.00019726,2]
[357974966,1744636246777,-500.0,0.00019726,2]
[357974967,1744636246787,-500.0,0.00019726,2]
[357974968,1744636246796,-500.0,0.00019726,2]
[357974969,1744636246807,-500.0,0.00019726,2]
[357974970,1744636246818,-500.0,0.00019726,2]
[357974971,1744636246827,-809.0,0.00019726,2]
[357974972,1744636246837,-500.0,0.00019726,2]
[357974973,1744636246847,-500.0,0.00019726,2]
[357974974,1744636246857,-500.0,0.00019726,2]
[357974975,1744636246867,-500.0,0.00019726,2]
[357974976,1744636246876,-500.0,0.00019726,2]
[357974977,1744636246886,-500.0,0.00019726,2]
[357974978,1744636246895,-500.0,0.00019726,2]
[357974979,1744636246905,-500.0,0.00019726,2]
[357974980,1744636246914,-500.0,0.00019726,2]
[357974981,1744636246924,-500.0,0.00019726,2]
[357974982,1744636246933,-206.31,0.00019726,2]
[357974983,1744636246942,-448.3,0.00019726,2]
[357974984,1744636246951,-500.0,0.00019726,2]
[357974985,1744636246961,-162.56,0.00019726,2]
[357974986,1744636246970,-500.0,0.00019726,2]
[357974987,1744636246979,-500.0,0.00019726,2]
[357974988,1744636246988,-500.0,0.00019726,2]
[357974989,1744636246998,-500.0,0.00019726,2]
[357974990,1744636247008,-746.07,0.00019726,2]
[357974991,1744636247017,-442.16,0.00019726,2]
[357974992,1744636247027,-500.0,0.00019726,2]
[357974993,1744636247036,-500.0,0.00019726,2]
[357974994,1744636247046,-500.0,0.00019726,2]
[357974995,1744636247055,-380.93825309,0.00019726,2]
[357974996,1744636247065,-262.58,0.00019726,2]
[357974997,1744636247075,-500.0,0.00019726,2]
[357974998,1744636247085,-500.0,0.00019726,2]
[357974999,1744636247095,-500.0,0.00019726,2]
[357975000,1744636247105,-500.0,0.00019726,2]
[357975001,1744636247115,-1030.51172233,0.00019726,2]
[357975002,1744636247125,-500.0,0.00019726,2]
[357975003,1744636247135,-500.0,0.00019726,2]
[357975004,1744636247144,-225.57706412,0.00019726,2]
[357975005,1744636247154,-500.0,0.00019726,2]
[357975006,1744636247163,-789.71,0.00019726,2]
[357975007,1744636247172,-500.0,0.00019726,2]
[357975008,1744636247181,-312.51950477,0.00019726,2]
[357975009,1744636247191,-29615.42,0.00019726,2]
[357975010,1744636247200,-500.0,0.00019726,2]
[357975011,1744636247209,-500.0,0.00019726,2]
[357975012,1744636247218,-500.0,0.00019726,2]
[357975013,1744636247228,-1260.19,0.00019726,2]
[357975014,1744636247237,-616.48,0.00019726,2]
[357975015,1744636247247,-500.0,0.00019726,2]
[357975016,1744636247256,-3421.9,0.00019726,2]
[357975017,1744636247266,-518.40487843,0.00019726,2]
[357975018,1744636247275,-500.0,0.00019726,2]
[357975019,1744636247285,-944.47,0.00019726,2]
[357975020,1744636247294,-500.0,0.00019726,2]
[357975021,1744636247303,-500.0,0.00019726,2]
[357975022,1744636247313,-644.11,0.00019726,2]
[357975023,1744636247323,-500.0,0.00019726,2]
[357975024,1744636247333,-357.75,0.00019726,2]
[357975025,1744636247342,-412.9,0.00019726,2]
[357975026,1744636247352,-500.0,0.00019726,2]
[357975027,1744636247361,-540.87992598,0.00019726,2]
[357975028,1744636247371,-1255.63,0.00019726,2]
[357975029,1744636247380,-608.66220012,0.00019726,2]
[357975030,1744636247391,-595.55,0.00019726,2]
[357975031,1744636247404,-500.0,0.00019726,2]
[357975032,1744636247414,-1296.28,0.00019726,2]
[357975033,1744636247424,-500.0,0.00019726,2]
[357975034,1744636247433,-500.0,0.00019726,2]
[357975035,1744636247443,-500.0,0.00019726,2]
[357975036,1744636247452,-500.0,0.00019726,2]
[357975037,1744636247461,-336.9488306,0.00019726,2]
[357975038,1744636247472,-552.70251136,0.00019744,2]
[357975039,1744636247482,-461.70459356,0.00019778,2]
[357975040,1744636247491,-552.70251136,0.00019799,2]
[357975041,1744636247500,-1073.5015321,0.00019799,2]
[357975042,1744636247510,-461.70459356,0.00019839,2]
[357975043,1744636247519,-500.0,0.00019863,2]
[357975044,1744636247528,-500.0,0.00019863,2]
[357975045,1744636247538,-500.0,0.00019863,2]
[357975046,1744636247547,-500.0,0.00019863,2]
[357975047,1744636247557,-500.0,0.00019863,2]
[357975048,1744636247567,-500.0,0.00019863,2]
[357975049,1744636247577,-500.0,0.00019863,2]
[357975050,1744636247587,-500.0,0.00019863,2]
[357975051,1744636247596,-601.95100679,0.00019863,2]
[357975052,1744636247606,-500.0,0.00019863,2]
[357975053,1744636247616,-500.0,0.00019863,2]
[357975054,1744636247626,-550.0,0.00019863,2]
[357975055,1744636247636,-150.0,0.00019883,2]
[357975056,1744636247646,-1148.7752,0.000199,2]
[357975057,1744636247656,-2964.43119029,0.000199,2]
[357975058,1744636247666,-1000.0,0.000199,2]
[357975059,1744636247676,-461.70459356,0.000199,2]
[357975060,1744636247686,-1854.844,0.00019907,2]
[357975061,1744636247696,-152.0,0.00019917,2]
[357975062,1744636247706,-1134.248,0.00019917,2]
[357975063,1744636247716,-501.75534864,0.00019973,2]
[357975064,1744636247725,-578.81599954,0.00019973,2]
[357975065,1744636247735,-538.77045901,0.00019973,2]
[357975066,1744636247744,-323.6451562,0.00019973,2]
[357975067,1744636247754,-246.67040996,0.00019973,2]
[357975068,1744636247765,-502.248758,0.00019973,2]
[357975069,1744636247775,-500.0,0.00019973,2]
[357975070,1744636247786,-360.26739713,0.00019973,2]
[357975071,1744636247795,-12053.3233487,0.00019986,2]
[357975072,1744636247804,-108864.3314995,0.00019986,2]
[357975073,1744636247814,-4017.8392147,0.00019986,2]
[357975074,1744636247824,-177.34800861,0.0001999,2]
[357975075,1744636247834,-177.34800861,0.0001999,2]
[357975076,1744636247844,-248.88953447,0.00019999,5]
[357975077,1744636247854,-903.19,0.00019999,2]
[357975078,1744636247864,-500.0,0.00019999,2]
[357975079,1744636247874,-500.0,0.00019999,2]
[357975080,1744636247884,-500.0,0.00019999,2]
[357975081,1744636247894,-500.0,0.00019999,2]
[357975082,1744636247903,-500.0,0.00019999,2]
[357975083,1744636247913,-500.0,0.00019999,2]
[357975084,1744636247922,-500.0,0.00019999,2]
[357975085,1744636247932,-500.0,0.00019999,2]
[357975086,1744636247942,-500.0,0.00019999,2]
[357975087,1744636247951,-500.0,0.00019999,2]
[357975088,1744636247961,-500.0,0.00019999,2]
[357975089,1744636247971,-500.0,0.00019999,2]
[357975090,1744636247981,-500.0,0.00019999,2]
[357975091,1744636247991,-500.0,0.00019999,2]
[357975092,1744636248000,-500.0,0.00019999,2]
[357975093,1744636248010,-500.0,0.00019999,2]
[357975094,1744636248020,-500.0,0.00019999,2]
[357975095,1744636248030,-500.0,0.00019999,2]
[357975096,1744636248039,-500.0,0.00019999,2]
[357975097,1744636248049,-500.0,0.00019999,2]
[357975098,1744636248059,-380.22,0.00019999,2]
[357975099,1744636248070,-1538.0,0.00019999,2]
[357975100,1744636248080,-403135.80977502,0.0002,2]
[357975101,1744636248091,-379349.44911585,0.0002,2]
[357975102,1744636248106,-430.31217534,0.0002,2]
[357975103,1744636248117,-19340.10585862,0.0002,2]
[357975104,1744636248142,-251.27000002,0.0002,2]
[357975105,1744636248153,-404.83322655,0.0002,2]
[357975106,1744636248165,-481.83597822,0.0002,2]
[357975107,1744636248184,-486.85600002,0.0002,2]
[357975108,1744636249121,-3361.49318793,0.0002,2]
[357975109,1744636249153,-1269.47183342,0.0002,2]
[357975110,1744636249165,-24399.00628885,0.0002,2]
[357975111,1744636249174,-300.58383419,0.0002,2]
[357975112,1744636249184,-14092.53852638,0.0002,2]
[357975113,1744636249196,-16469.31273123,0.0002,2]
[357975114,1744636249207,-1320.0,0.0002,2]
[357975115,1744636249222,-524630.10875084,0.0002,2]
[357975116,1744636249232,-150.0,0.0002,2]
[357975117,1744636249242,-6088.99999187,0.0002,2]
[357975118,1744636249252,-5599.999999,0.0002,2]
[357975119,1744636249262,-94869.77492068,0.0002,2]
[357975120,1744636249272,-1000.0,0.0002,2]
[357975121,1744636249281,-1000.0,0.0002,2]